bitfinex-derivatives/quotes_SOLF0:USTF0_20250823
["timestamp","ask_amount","ask_price","bid_price","bid_amount"]
[1755928864927,5.96858731,207.9,207.79,2.56]
[1755928865528,4.8123,207.89,207.79,2.56]
[1755928866634,4.8123,207.89,207.8,10.02574662]
[1755928866834,4.8123,207.89,207.79,2.56]
[1755928867032,5.96858731,207.86,207.8,5.26062389]
[1755928867235,5.96858731,207.86,207.75,2.56]
[1755928867533,126.3,207.85,207.76,10.03364077]
[1755928867735,126.3,207.85,207.77,4.7696082]
[1755928867934,126.3,207.85,207.75,2.56]
[1755928868235,126.3,207.85,207.76,9.9213412]
[1755928868430,126.3,207.85,207.77,4.76972153]
[1755928868629,126.3,207.85,207.75,2.56]
[1755928868832,126.3,207.85,207.76,9.92237726]
[1755928869029,10.57051043,208.07,207.83,2.56]
[1755928869237,5.96858731,208.06,207.87,2.56]
[1755928869429,5.96858731,208.06,207.89,2.56]
[1755928869632,132.24858731,208.06,207.9,9.9184146]
[1755928869934,126.28,208.05,207.91,12.4784146]
[1755928870137,126.28,208.05,207.92,9.9184146]
[1755928870334,126.28,208.05,207.93,9.9184146]
[1755928870633,126.28,208.05,207.94,4.77107373]
[1755928870830,150.3231,208.05,207.95,4.77107373]
[1755928871136,150.3231,208.05,207.96,4.77107373]
[1755928871335,150.3231,208.05,207.91,2.56]
[1755928871533,150.3231,208.05,207.92,4.96524551]
[1755928871734,150.3231,208.05,207.93,4.96524551]
[1755928872037,9.42588609,208.03,207.87,2.56]
[1755928872239,9.42588609,208.03,207.88,10.08991111]
[1755928872430,9.42588609,208.03,207.89,10.08894004]
[1755928872628,9.42588609,208.03,207.9,4.96760332]
[1755928872828,4.8099,208.0,207.91,4.96760332]
[1755928873031,4.8099,208.0,207.9,2.56]
[1755928873228,4.8099,208.0,207.91,4.798013]
[1755928873431,4.8099,208.0,207.9,2.56]
[1755928873637,4.8099,208.0,207.91,4.79419778]
[1755928873938,24.0409,208.07,207.93,2.56]
[1755928874239,126.22,208.06,207.93,2.56]
[1755928874438,4.8087,208.05,207.93,2.56]
[1755928874939,4.8087,208.05,207.94,4.7894071]
[1755928875142,4.8087,208.05,207.93,2.56]
[1755928875333,4.8087,208.05,207.94,4.7884878]
[1755928875632,4.8087,208.05,207.93,2.56]
[1755928875633,131.0287,208.05,207.93,2.56]
[1755928876041,131.0287,208.05,207.94,4.78516538]
[1755928876239,131.0287,208.05,207.93,2.56]
[1755928876440,4.8087,208.05,207.94,4.78366625]
[1755928876642,131.0287,208.05,207.95,4.78366625]
[1755928876940,131.0287,208.05,207.93,2.56]
[1755928877136,4.8091,208.03,207.94,4.78883273]
[1755928877339,4.8091,208.03,207.93,2.56]
[1755928877639,4.8091,208.03,207.94,4.78634633]
[1755928877835,4.8091,208.03,207.93,2.56]
[1755928878042,126.22,208.05,207.95,2.56]
[1755928878238,126.2,208.06,207.96,4.78706106]
[1755928878444,126.2,208.06,207.95,2.56]
[1755928878744,126.2,208.06,207.96,4.78285977]
[1755928879043,126.2,208.06,207.95,2.56]
[1755928879244,4.8086,208.05,207.95,2.56]
[1755928880446,4.8091,208.03,207.89,2.56]
[1755928880741,4.8095,208.01,207.9,9.80060258]
[1755928880946,9.42588609,208.03,207.91,4.78393446]
[1755928881144,9.42588609,208.03,207.89,2.56]
[1755928881345,9.42588609,208.03,207.9,4.78562099]
[1755928881542,9.42588609,208.03,207.89,2.56]
[1755928881744,4.8104,207.97,207.9,4.78483095]
[1755928882039,24.0485,208.01,207.82,4.8137]
[1755928882238,24.0653,207.86,207.7,2.56]
[1755928882439,9.42588609,207.82,207.7,2.56]
[1755928882640,9.42588609,207.82,207.71,5.03034167]
[1755928882842,126.28,207.86,207.73,2.56]
[1755928883039,126.28,207.86,207.74,4.95836606]
[1755928883348,126.28,207.86,207.75,4.95836606]
[1755928883546,126.28,207.86,207.76,4.95836606]
[1755928883748,4.8132,207.85,207.73,2.56]
[1755928883943,126.42,207.86,207.73,2.56]
[1755928884144,4.8138,207.83,207.73,2.56]
[1755928884448,24.0662,207.85,207.73,2.56]
[1755928885545,4.8143,207.81,207.74,13.78]
[1755928889648,126.2,207.82,207.74,13.78]
[1755928889955,9.42588609,207.83,207.74,13.78]
[1755928890148,126.2,207.82,207.74,13.78]
[1755928891555,4.8149,207.78,207.74,13.78]
[1755928894552,131.0349,207.78,207.74,13.78]
[1755928896354,126.22,207.77,207.74,13.78]
[1755928897260,4.8153,207.76,207.74,13.78]
[1755928897456,126.22,207.77,207.57,2.55]
[1755928897659,126.22,207.77,207.59,2.55]
[1755928897958,126.22,207.77,207.61,2.55]
[1755928898160,126.22,207.77,207.63,2.55]
[1755928898358,4.816,207.73,207.63,2.55]
[1755928899662,4.816,207.73,207.65,2.55]
[1755928906468,4.8164,207.71,207.65,2.55]
[1755928907262,4.8169,207.69,207.63,13.63]
[1755928907461,5.96997925,207.74,207.64,2.55]
[1755928907661,126.22,207.72,207.64,2.55]
[1755928907966,126.22,207.74,207.64,2.55]
[1755928908558,131.0358,207.74,207.64,2.55]
[1755928909667,4.8167,207.7,207.63,13.63]
[1755928911866,5.96997925,207.71,207.63,13.63]
[1755928912066,126.22,207.7,207.63,13.63]
[1755928912265,10.78757925,207.66,207.63,13.63]
[1755928912565,5.96997925,207.66,207.63,13.63]
[1755928913164,4.818,207.65,207.63,13.63]
[1755928913672,4.8186,207.62,207.6,16.39]
[1755928913871,5.96997925,207.61,207.52,2.55]
[1755928915073,132.18997925,207.61,207.52,2.55]
[1755928915774,4.819,207.6,207.52,2.55]
[1755928917177,132.18997925,207.61,207.52,2.55]
[1755928917381,126.22,207.63,207.52,2.55]
[1755928917876,126.22,207.63,207.51,2.55]
[1755928918079,126.22,207.63,207.53,2.55]
[1755928918682,5.96997925,207.65,207.53,2.55]
[1755928919277,5.96997925,207.65,207.54,4.53023988]
[1755928919484,126.22,207.66,207.55,4.52975748]
[1755928919686,126.22,207.66,207.56,2.55]
[1755928919885,10.78737925,207.67,207.56,2.55]
[1755928920183,137.00737925,207.67,207.56,7.3697]
[1755928920786,132.16997925,207.67,207.58,4.8194]
[1755928921483,5.96997925,207.63,207.52,2.55]
[1755928921680,5.96997925,207.63,207.53,4.53764601]
[1755928921879,5.96997925,207.63,207.52,2.55]
[1755928922282,5.96997925,207.63,207.53,9.35191559]
[1755928922486,4.8187,207.62,207.52,2.55]
[1755928922786,5.96997925,207.63,207.53,4.54125116]
[1755928922989,5.96997925,207.63,207.52,2.55]
[1755928923186,5.96997925,207.59,207.53,4.54125116]
[1755928923486,5.96997925,207.59,207.54,4.54592364]
[1755928923687,5.96997925,207.59,207.52,2.55]
[1755928923883,5.96997925,207.59,207.53,9.36153775]
[1755928924083,5.96997925,207.59,207.54,4.54592364]
[1755928924285,4.819,207.61,207.52,2.55]
[1755928924481,4.819,207.61,207.53,9.36669034]
[1755928924687,4.819,207.61,207.54,9.36669034]
[1755928924886,4.819,207.61,207.55,9.36669034]
[1755928925086,126.2,207.62,207.52,2.55]
[1755928925279,126.2,207.62,207.53,11.38936825]
[1755928925482,126.2,207.62,207.54,9.37335153]
[1755928925684,126.2,207.62,207.55,9.37335153]
[1755928925884,126.2,207.62,207.56,9.37335153]
[1755928926079,9.46463265,207.63,207.52,2.55]
[1755928926280,4.8187,207.61,207.53,15.51255968]
[1755928926486,135.64463265,207.63,207.54,4.55825396]
[1755928926684,135.64463265,207.63,207.55,4.55825396]
[1755928926885,135.64463265,207.63,207.56,4.55825396]
[1755928927086,135.64463265,207.63,207.57,4.55825396]
[1755928927384,4.8188,207.61,207.58,4.55825396]
[1755928927583,4.8188,207.61,207.52,2.55]
[1755928927788,135.64463265,207.63,207.5,23.07954114]
[1755928927789,135.64463265,207.63,207.53,11.27078066]
[1755928927987,9.46463265,207.58,207.5,17.42]
[1755928929094,4.8204,207.54,207.5,17.42]
[1755928929287,131.0004,207.54,207.5,17.42]
[1755928929590,126.18,207.54,207.5,17.42]
[1755928930593,126.16,207.55,207.5,17.42]
[1755928931184,9.46463265,207.58,207.5,17.42]
[1755928931185,9.46463265,207.58,207.51,2.73]
[1755928931386,24.0825,207.71,207.5,17.42]
[1755928931387,9.46463265,207.82,207.58,2.73]
[1755928931687,9.46463265,207.84,207.67,2.73]
[1755928931881,4.8133,207.85,207.68,10.45472251]
[1755928932192,126.16,207.84,207.7,2.73]
[1755928932391,126.16,207.84,207.72,2.73]
[1755928932592,126.16,207.84,207.73,6.003364]
[1755928932792,126.16,207.84,207.74,2.01558195]
[1755928932993,4.8137,207.83,207.75,2.01558195]
[1755928933189,4.8137,207.83,207.67,2.73]
[1755928933388,4.8137,207.83,207.68,6.06723444]
[1755928933690,4.8137,207.83,207.69,6.06723444]
[1755928933893,4.8137,207.83,207.7,2.01590977]
[1755928934094,4.8137,207.83,207.71,2.01590977]
[1755928934294,126.18,207.82,207.66,7.5474]
[1755928934486,9.46463265,207.79,207.67,7.10894001]
[1755928934689,126.26,207.78,207.68,7.10894001]
[1755928934890,126.26,207.78,207.69,7.10894001]
[1755928935092,126.26,207.78,207.7,7.10851321]
[1755928935290,126.26,207.78,207.71,7.10851321]
[1755928935596,126.26,207.78,207.72,5.09153369]
[1755928935796,9.46463265,207.83,207.73,5.09153369]
[1755928936095,126.18,207.82,207.74,5.09153369]
[1755928936291,14.27963265,207.78,207.65,2.73]
[1755928936600,9.46463265,207.78,207.61,2.73]
[1755928936787,9.46463265,207.78,207.62,2.01739518]
[1755928937094,4.8154,207.76,207.63,2.01739518]
[1755928937294,126.26,207.75,207.64,2.01739518]
[1755928937495,126.26,207.75,207.65,2.01739518]
[1755928937797,126.26,207.75,207.61,2.73]
[1755928937995,126.26,207.75,207.62,2.01205242]
[1755928938195,126.26,207.75,207.63,2.01205242]
[1755928938393,126.26,207.75,207.61,2.73]
[1755928938394,126.26,207.75,207.64,2.01205242]
[1755928938595,126.26,207.75,207.61,2.73]
[1755928938895,126.26,207.75,207.62,2.01232748]
[1755928939096,126.26,207.75,207.63,2.01232748]
[1755928939298,126.26,207.75,207.61,2.73]
[1755928939598,4.816,207.74,207.62,2.01259841]
[1755928939899,126.14,207.73,207.63,2.01257211]
[1755928940100,126.14,207.73,207.61,2.73]
[1755928940297,126.14,207.73,207.62,2.01256858]
[1755928940597,126.14,207.73,207.61,2.73]
[1755928940797,126.14,207.73,207.62,2.0128133]
[1755928940997,126.14,207.73,207.61,2.73]
[1755928941190,126.14,207.73,207.62,2.01281154]
[1755928941390,126.14,207.73,207.61,2.73]
[1755928942090,126.14,207.72,207.61,2.73]
[1755928942292,126.14,207.71,207.61,2.73]
[1755928942501,4.8159,207.74,207.61,2.73]
[1755928942701,126.14,207.73,207.61,2.73]
[1755928942997,126.14,207.72,207.61,2.73]
[1755928943202,126.14,207.72,207.62,4.8185]
[1755928943495,126.14,207.72,207.63,2.73]
[1755928944396,126.14,207.71,207.63,2.73]
[1755928944600,126.14,207.7,207.63,2.73]
[1755928944795,126.12,207.71,207.63,2.73]
[1755928945001,126.12,207.73,207.63,2.73]
[1755928947802,126.12,207.72,207.63,2.73]
[1755928950606,126.12,207.71,207.63,2.73]
[1755928951506,4.8162,207.73,207.63,2.73]
[1755928951703,126.12,207.72,207.63,2.73]
[1755928952406,4.8162,207.73,207.63,2.73]
[1755928952612,126.1,207.72,207.63,7.5483]
[1755928953107,126.1,207.72,207.62,16.43]
[1755928953607,126.1,207.71,207.62,16.43]
[1755928954005,24.0796,207.74,207.62,16.43]
[1755928954203,126.1,207.73,207.62,16.43]
[1755928955306,126.1,207.72,207.62,16.43]
[1755928955509,126.1,207.72,207.63,2.65]
[1755928956505,126.1,207.72,207.63,7.4683]
[1755928957607,126.08,207.71,207.63,7.4683]
[1755928960307,323.96,207.86,207.68,2.65]
[1755928960508,126.08,207.85,207.7,2.65]
[1755928960709,4.8137,207.84,207.73,4.816]
[1755928960905,126.08,207.83,207.73,4.816]
[1755928961106,126.08,207.85,207.74,7.46223663]
[1755928961312,126.08,207.85,207.75,4.8155]
[1755928961611,126.08,207.85,207.74,2.65]
[1755928961811,454.853,207.86,207.75,4.80977236]
[1755928962015,454.853,207.86,207.74,2.65]
[1755928962215,454.853,207.86,207.75,4.80967235]
[1755928962418,454.853,207.86,207.74,2.65]
[1755928962716,450.04,207.86,207.75,4.80756812]
[1755928962911,323.96,207.86,207.74,2.65]
[1755928963219,126.06,207.85,207.74,2.65]
[1755928963613,126.06,207.85,207.76,4.8151]
[1755928964116,323.96,207.86,207.76,4.8151]
[1755928964317,126.04,207.85,207.76,4.8151]
[1755928964514,4.8135,207.84,207.74,2.65]
[1755928964818,126.04,207.83,207.74,2.65]
[1755928965820,4.8135,207.84,207.74,2.65]
[1755928966018,126.02,207.83,207.74,2.65]
[1755928966517,126.02,207.83,207.75,4.8155]
[1755928968620,126.02,207.82,207.75,4.8155]
[1755928969424,4.8135,207.84,207.75,4.8155]
[1755928969623,126.0,207.82,207.75,4.8155]
[1755928970013,4.8135,207.84,207.75,4.8155]
[1755928970319,126.0,207.83,207.75,4.8155]
[1755928971224,130.8139,207.83,207.74,2.65]
[1755928971822,328.7732,207.86,207.75,4.8155]
[1755928972020,328.7732,207.86,207.74,2.65]
[1755928972021,125.98,207.85,207.74,2.65]
[1755928972217,125.98,207.85,207.75,4.80621916]
[1755928972520,125.98,207.84,207.74,2.65]
[1755928972824,125.98,207.84,207.78,4.8146]
[1755928973019,4.8126,207.88,207.74,2.65]
[1755928973223,125.98,207.87,207.76,2.65]
[1755928973415,125.98,207.87,207.77,4.80651499]
[1755928973616,125.98,207.87,207.76,2.65]
[1755928973824,125.98,207.87,207.77,4.80850699]
[1755928974024,125.98,207.87,207.76,2.65]
[1755928974227,19.08633265,207.96,207.81,4.8139]
[1755928974524,125.98,207.92,207.81,4.8139]
[1755928974922,125.96,207.91,207.81,4.8139]
[1755928975124,125.96,207.9,207.81,4.8139]
[1755928975624,130.7723,207.9,207.81,4.8139]
[1755928975825,125.96,207.9,207.81,4.8139]
[1755928976621,4.8125,207.89,207.78,7.4646]
[1755928977019,4.8125,207.89,207.79,4.8226332]
[1755928977228,4.8125,207.89,207.8,4.8143]
[1755928977926,125.94,207.88,207.78,2.65]
[1755928978225,125.94,207.88,207.79,4.82154758]
[1755928978422,125.94,207.88,207.83,4.8137]
[1755928979221,4.8118,207.92,207.83,4.8137]
[1755928979428,125.92,207.91,207.84,4.8133]
[1755928980128,125.92,207.91,207.85,12.38]
[1755928980535,323.66,207.97,207.85,12.38]
[1755928980829,131.8791398,207.94,207.85,12.38]
[1755928981330,4.8116,207.92,207.85,12.38]
[1755928981925,5.9591398,207.9,207.85,12.38]
[1755928983629,4.8123,207.89,207.85,12.38]
[1755928983932,125.9,207.88,207.85,12.38]
[1755928986028,4.8123,207.9,207.85,12.38]
[1755928986230,125.88,207.89,207.85,12.38]
[1755928986631,4.8125,207.88,207.85,12.38]
[1755928986830,5.9591398,207.87,207.73,2.73]
[1755928987134,4.8134,207.85,207.74,9.63580193]
[1755928987335,125.86,207.84,207.75,4.82030193]
[1755928987636,125.86,207.84,207.76,4.82030193]
[1755928987835,125.86,207.84,207.74,4.8155]
[1755928988036,125.86,207.84,207.75,4.82081596]
[1755928988235,125.86,207.84,207.74,4.8155]
[1755928988439,125.86,207.84,207.75,4.82139504]
[1755928988735,125.86,207.84,207.74,4.8155]
[1755928988924,125.86,207.84,207.75,4.82139504]
[1755928989127,125.86,207.84,207.74,4.8155]
[1755928989328,125.86,207.84,207.75,4.82179511]
[1755928989533,131.8191398,207.84,207.74,4.8155]
[1755928989730,131.8191398,207.84,207.75,4.82204527]
[1755928989929,131.8191398,207.84,207.74,4.8155]
[1755928990234,131.8191398,207.84,207.75,4.82204527]
[1755928990435,131.8191398,207.84,207.74,19.0155]
[1755928991036,125.86,207.83,207.74,19.0155]
[1755928991532,125.86,207.83,207.75,17.2]
[1755928991941,5.9591398,207.8,207.75,17.2]
[1755928992436,4.8153,207.77,207.75,17.2]
[1755928992637,125.84,207.76,207.75,17.2]
[1755928992838,125.82,207.76,207.75,17.2]
[1755928993438,4.8153,207.77,207.75,17.2]
[1755928993639,125.82,207.76,207.75,17.2]
[1755928994034,4.8153,207.77,207.75,17.2]
[1755928994236,125.82,207.76,207.75,17.2]
[1755928996043,5.9591398,207.8,207.75,17.2]
[1755928996242,4.8153,207.77,207.75,17.2]
[1755928996440,5.9591398,207.76,207.74,14.2]
[1755928996843,5.9591398,207.76,207.65,2.73]
[1755928997041,4.8155,207.75,207.65,2.73]
[1755928997942,125.82,207.74,207.65,2.73]
[1755929000234,5.9591398,207.77,207.66,9.22247393]
[1755929000439,125.8,207.77,207.68,2.73]
[1755929001345,125.8,207.77,207.7,2.73]
[1755929001544,125.8,207.77,207.7,7.5465]
[1755929001738,4.8144,207.8,207.7,7.5465]
[1755929001941,125.8,207.79,207.7,7.5465]
[1755929002340,4.8144,207.8,207.72,4.8162]
[1755929002544,4.8144,207.8,207.73,2.73]
[1755929002747,328.4539,207.82,207.73,2.73]
[1755929002947,454.2539,207.82,207.73,2.73]
[1755929003151,449.44,207.82,207.74,4.8158]
[1755929004153,449.44,207.82,207.76,4.8153]
[1755929004352,323.64,207.82,207.76,4.8153]
[1755929004551,449.42,207.82,207.76,7.5453]
[1755929004851,125.78,207.82,207.76,7.5453]
[1755929005851,125.78,207.82,207.78,4.8148]
[1755929006057,125.78,207.82,207.78,7.5448]
[1755929007256,125.78,207.82,207.78,2.73]
[1755929007646,4.8132,207.86,207.78,2.73]
[1755929007847,125.74,207.85,207.78,2.73]
[1755929008243,4.8135,207.84,207.72,4.816]
[1755929008450,131.6991398,207.85,207.72,4.816]
[1755929009044,125.74,207.84,207.72,4.816]
[1755929009456,4.8139,207.82,207.72,4.816]
[1755929009654,125.72,207.81,207.73,4.8158]
[1755929009854,5.9591398,207.85,207.71,2.73]
[1755929009855,125.72,207.8,207.71,2.73]
[1755929010055,125.72,207.8,207.73,2.73]
[1755929010259,125.72,207.8,207.75,4.8155]
[1755929010456,125.72,207.8,207.76,2.73]
[1755929010860,125.72,207.82,207.76,2.73]
[1755929011354,125.72,207.82,207.76,7.5451]
[1755929011549,323.7,207.93,207.76,2.73]
[1755929011750,5.9591398,207.91,207.76,2.73]
[1755929011948,5.9591398,207.91,207.79,4.8146]
[1755929012153,4.8119,207.91,207.76,2.73]
[1755929012346,323.7,207.93,207.79,2.73]
[1755929012547,125.7,207.91,207.81,2.73]
[1755929013353,125.7,207.91,207.82,4.6364667]
[1755929013651,125.7,207.91,207.81,4.8141]
[1755929013857,5.9591398,207.83,207.74,4.8158]
[1755929014056,125.68,207.82,207.75,4.63750274]
[1755929014254,5.9591398,207.83,207.76,4.63750274]
[1755929014446,125.68,207.82,207.77,4.63750274]
[1755929014648,125.68,207.82,207.73,2.62]
[1755929014849,125.68,207.82,207.74,9.46002758]
[1755929015058,125.68,207.82,207.75,9.46002758]
[1755929015260,125.68,207.82,207.76,4.63711146]
[1755929015558,125.68,207.82,207.77,4.63711146]
[1755929015758,5.9591398,207.87,207.78,4.63709332]
[1755929015963,125.66,207.85,207.76,2.62]
[1755929016256,125.66,207.85,207.77,4.63711305]
[1755929016451,125.66,207.85,207.76,2.62]
[1755929016656,125.66,207.85,207.77,4.63710173]
[1755929016862,125.66,207.85,207.76,2.62]
[1755929017058,125.66,207.85,207.77,4.63710172]
[1755929017259,125.66,207.85,207.71,2.62]
[1755929017459,125.66,207.85,207.72,9.46119922]
[1755929017661,125.66,207.85,207.73,4.63769819]
[1755929017961,135.10236723,207.85,207.71,2.62]
[1755929018263,135.10236723,207.85,207.72,4.63799151]
[1755929018460,135.10236723,207.85,207.73,4.63799151]
[1755929018662,135.10236723,207.85,207.74,4.63816125]
[1755929018859,125.62,207.84,207.71,2.62]
[1755929019068,125.62,207.84,207.72,9.462098]
[1755929019358,125.62,207.84,207.73,4.63816125]
[1755929019566,4.8139,207.83,207.72,4.8162]
[1755929019864,4.8139,207.83,207.73,4.63857367]
[1755929020161,4.8139,207.83,207.72,4.8162]
[1755929020563,4.8139,207.83,207.73,4.63881817]
[1755929020862,4.8139,207.83,207.74,4.63881817]
[1755929021063,4.8139,207.83,207.74,9.94]
[1755929021953,125.6,207.82,207.74,9.94]
[1755929022161,323.7,207.93,207.78,2.62]
[1755929022357,323.7,207.93,207.79,9.46322462]
[1755929022562,323.7,207.93,207.81,2.62]
[1755929022761,125.6,207.92,207.84,4.8134]
[1755929024463,125.6,207.92,207.82,4.8139]
[1755929024665,125.58,207.91,207.83,4.63607638]
[1755929024964,125.58,207.91,207.82,4.8139]
[1755929025264,125.58,207.91,207.83,4.63607638]
[1755929025464,125.58,207.91,207.82,4.8139]
[1755929025664,125.58,207.91,207.83,4.63533111]
[1755929025854,4.8118,207.91,207.82,4.8139]
[1755929026055,4.8118,207.91,207.83,4.63533111]
[1755929026056,125.56,207.9,207.83,4.63533111]
[1755929026365,125.56,207.9,207.82,4.8139]
[1755929028866,4.8118,207.91,207.82,4.8139]
[1755929029068,125.52,207.9,207.82,4.8139]
[1755929030155,4.8118,207.91,207.82,4.8139]
[1755929030361,125.52,207.9,207.82,4.8139]
[1755929030557,125.52,207.9,207.83,4.63215424]
[1755929030860,125.52,207.9,207.84,4.63215424]
[1755929031061,125.52,207.9,207.82,4.8139]
[1755929031261,125.52,207.9,207.83,4.63199666]
[1755929031464,125.52,207.9,207.84,4.63199666]
[1755929031663,125.52,207.9,207.82,4.8139]
[1755929031863,323.7,207.93,207.84,4.8133]
[1755929032063,125.5,207.92,207.84,4.8133]
[1755929033865,125.5,207.92,207.85,4.69294358]
[1755929034166,125.5,207.92,207.84,4.8133]
[1755929036070,125.46,207.91,207.84,4.8133]
[1755929036570,125.46,207.91,207.85,4.813]
[1755929037667,125.44,207.9,207.85,4.813]
[1755929038572,125.42,207.92,207.86,2.62]
[1755929038767,125.4,207.92,207.86,2.62]
[1755929039473,125.4,207.92,207.86,4.813]
[1755929040972,125.4,207.92,207.83,4.8135]
[1755929041170,125.4,207.92,207.84,4.68770847]
[1755929041369,4.8113,207.94,207.85,4.68770847]
[1755929041569,125.38,207.93,207.86,4.68770847]
[1755929041771,125.38,207.93,207.82,2.62]
[1755929041968,125.38,207.93,207.83,9.50522203]
[1755929042166,125.38,207.93,207.84,9.50663985]
[1755929042370,4.8113,207.94,207.85,7.30568779]
[1755929042570,125.36,207.93,207.86,4.68568779]
[1755929042768,125.36,207.93,207.85,7.4332]
[1755929043072,125.36,207.93,207.86,4.68842452]
[1755929043271,125.36,207.93,207.87,4.68781919]
[1755929043471,125.36,207.93,207.85,7.4332]
[1755929043663,125.36,207.93,207.86,4.68760988]
[1755929043863,5.95756833,208.08,207.9,2.55]
[1755929044068,125.34,208.07,207.91,11.51426348]
[1755929044271,130.1484,208.07,207.93,2.55]
[1755929044573,130.1484,208.07,207.94,4.68377395]
[1755929044768,125.34,208.07,207.95,4.68377395]
[1755929044962,125.34,208.07,207.96,4.68377395]
[1755929045172,125.34,208.07,207.93,2.55]
[1755929045372,125.34,208.07,207.94,4.68144474]
[1755929045573,4.8086,208.06,207.95,9.49214474]
[1755929045773,4.8086,208.06,207.96,4.68144474]
[1755929045973,4.8086,208.06,207.95,4.8107]
[1755929046175,4.8086,208.06,207.96,4.68379358]
[1755929046368,4.8086,208.06,207.95,4.8107]
[1755929046570,4.8086,208.06,207.96,4.68470742]
[1755929046874,4.8086,208.06,207.95,4.8107]
[1755929047074,4.8086,208.06,207.96,4.68534018]
[1755929047274,4.8086,208.06,207.97,4.68534018]
[1755929047476,5.95756833,208.04,207.85,5.95756833]
[1755929047678,5.95756833,208.04,207.87,2.55]
[1755929047876,5.95756833,208.0,207.88,9.50345152]
[1755929048174,5.95756833,208.0,207.87,2.55]
[1755929048175,125.28,207.99,207.89,9.50345152]
[1755929048371,125.28,207.99,207.87,2.55]
[1755929048372,125.28,207.99,207.9,4.68475255]
[1755929048566,5.95756833,207.96,207.84,18.58]
[1755929048773,5.95756833,207.96,207.85,9.50609966]
[1755929048972,5.95756833,207.96,207.86,4.68608248]
[1755929049174,5.95756833,207.96,207.87,4.68608248]
[1755929049370,5.95756833,207.96,207.88,4.68608248]
[1755929049577,5.95756833,207.96,207.84,18.58]
[1755929049778,5.95756833,207.96,207.85,4.6862773]
[1755929049976,5.95756833,207.96,207.84,18.58]
[1755929050177,5.95756833,207.96,207.85,4.68730676]
[1755929050376,5.95756833,207.96,207.84,18.58]
[1755929050576,5.95756833,207.96,207.85,4.687225]
[1755929050776,5.95756833,207.96,207.85,9.92]
[1755929051780,4.812,207.91,207.85,9.92]
[1755929052083,125.24,207.9,207.85,9.92]
[1755929053181,125.24,207.91,207.85,9.92]
[1755929055679,125.22,207.91,207.86,4.68983883]
[1755929055880,125.22,207.91,207.85,9.92]
[1755929056585,4.8121,207.9,207.85,9.92]
[1755929056785,125.22,207.91,207.85,9.92]
[1755929057581,4.8126,207.88,207.85,9.92]
[1755929061482,130.032,207.91,207.85,9.92]
[1755929061676,125.22,207.91,207.85,9.92]
[1755929061877,24.0563,207.94,207.85,9.92]
[1755929062087,125.18,207.93,207.85,9.92]
[1755929062786,30.01386833,207.94,207.85,9.92]
[1755929062990,125.18,207.93,207.85,9.92]
[1755929063584,4.8121,207.9,207.85,9.92]
[1755929064090,125.16,207.89,207.85,9.92]
[1755929064384,4.813,207.86,207.85,9.92]
[1755929064585,24.0654,207.86,207.72,2.55]